[Event "*** Titled Tuesday Blitz"]
[Site "Chess.com"]
[Date "2019.03.05"]
[Round "10"]
[White "nochewycandy"]
[Black "vovachesss"]
[Result "0-1"]
[WhiteElo "2365"]
[BlackElo "2574"]
[TimeControl "180+2"]
[EndTime "15:25:08 PST"]
[Termination "vovachesss won by resignation"]

1. e4 {[%clk 0:03:01.9]} 1... Nc6 {[%clk 0:02:57.9]} 2. Nf3 {[%clk 0:02:57.1]}
2... d6 {[%clk 0:02:59.3]} 3. h3 {[%clk 0:02:53]} 3... g6 {[%clk 0:03:00.8]} 4.
d4 {[%clk 0:02:53.3]} 4... Bg7 {[%clk 0:03:02.3]} 5. c3 {[%clk 0:02:54]} 5...
Nf6 {[%clk 0:03:03.1]} 6. Bd3 {[%clk 0:02:54.4]} 6... O-O {[%clk 0:03:04.6]} 7.
O-O {[%clk 0:02:54.8]} 7... a6 {[%clk 0:03:05.1]} 8. Re1 {[%clk 0:02:55.3]} 8...
e5 {[%clk 0:02:57.3]} 9. Na3 {[%clk 0:02:52.4]} 9... b5 {[%clk 0:02:55.3]} 10.
Nc2 {[%clk 0:02:49]} 10... Re8 {[%clk 0:02:54.7]} 11. a4 {[%clk 0:02:47.7]}
11... Rb8 {[%clk 0:02:48.8]} 12. d5 {[%clk 0:02:34.9]} 12... Ne7 {[%clk
0:02:44.3]} 13. axb5 {[%clk 0:02:34.8]} 13... axb5 {[%clk 0:02:46.2]} 14. Nb4
{[%clk 0:02:30.6]} 14... Bd7 {[%clk 0:02:45.1]} 15. Bg5 {[%clk 0:02:28.1]} 15...
Nh5 {[%clk 0:02:38.7]} 16. Qd2 {[%clk 0:02:25.7]} 16... f6 {[%clk 0:02:21]} 17.
Bh6 {[%clk 0:02:15]} 17... Bxh6 {[%clk 0:02:12.6]} 18. Qxh6 {[%clk 0:02:16.9]}
18... Nf4 {[%clk 0:02:13.9]} 19. Bf1 {[%clk 0:02:17.5]} 19... Kh8 {[%clk
0:02:06.4]} 20. g3 {[%clk 0:02:09.2]} 20... Ng8 {[%clk 0:02:07.1]} 21. Qh4
{[%clk 0:02:10.7]} 21... g5 {[%clk 0:02:07.5]} 22. gxf4 {[%clk 0:02:08.5]} 22...
gxh4 {[%clk 0:02:08.3]} 23. f5 {[%clk 0:02:10.4]} 23... Qe7 {[%clk 0:02:03.6]}
24. Kh2 {[%clk 0:02:11.2]} 24... Qg7 {[%clk 0:02:04.3]} 25. Bd3 {[%clk
0:02:12.2]} 25... Qh6 {[%clk 0:02:04.8]} 26. Kg2 {[%clk 0:02:04]} 26... Qf4
{[%clk 0:02:04.3]} 27. Nh2 {[%clk 0:02:05.4]} 27... Nh6 {[%clk 0:02:05.1]} 28.
Ra7 {[%clk 0:01:56.8]} 28... Rg8+ {[%clk 0:02:05.5]} 0-1

[Event "*** Titled Tuesday Blitz"]
[Site "Chess.com"]
[Date "2019.03.05"]
[Round "10"]
[White "nikitakhoroshev"]
[Black "fm_magua"]
[Result "0-1"]
[WhiteElo "2580"]
[BlackElo "2486"]
[TimeControl "180+2"]
[EndTime "15:25:27 PST"]
[Termination "fm_magua won by checkmate"]

1. e4 {[%clk 0:02:58.4]} 1... c5 {[%clk 0:03:00.5]} 2. Nf3 {[%clk 0:02:58.5]}
2... Nc6 {[%clk 0:03:01.9]} 3. Bb5 {[%clk 0:02:55.8]} 3... g6 {[%clk 0:03:02.4]}
4. O-O {[%clk 0:02:56.2]} 4... Bg7 {[%clk 0:03:03.3]} 5. Re1 {[%clk 0:02:56.7]}
5... Nf6 {[%clk 0:03:04]} 6. c3 {[%clk 0:02:55.9]} 6... O-O {[%clk 0:03:00.9]}
7. d3 {[%clk 0:02:52.2]} 7... d6 {[%clk 0:03:00.7]} 8. Nbd2 {[%clk 0:02:50.7]}
8... e5 {[%clk 0:03:01.4]} 9. Nf1 {[%clk 0:02:47.6]} 9... Nh5 {[%clk 0:03:02.4]}
10. Ne3 {[%clk 0:02:40.8]} 10... h6 {[%clk 0:03:02.1]} 11. Nd5 {[%clk
0:02:37.7]} 11... Be6 {[%clk 0:03:00.2]} 12. Bc4 {[%clk 0:02:23.9]} 12... Na5
{[%clk 0:02:56.7]} 13. b4 {[%clk 0:01:34.3]} 13... cxb4 {[%clk 0:02:47]} 14.
cxb4 {[%clk 0:01:32.2]} 14... Nc6 {[%clk 0:02:48.1]} 15. a3 {[%clk 0:01:28.6]}
15... Nd4 {[%clk 0:02:47.3]} 16. Nxd4 {[%clk 0:01:27]} 16... exd4 {[%clk
0:02:49.2]} 17. Bb2 {[%clk 0:01:21.5]} 17... Qh4 {[%clk 0:02:49]} 18. g3 {[%clk
0:01:20.9]} 18... Qh3 {[%clk 0:02:48.2]} 19. Ne7+ {[%clk 0:01:17.8]} 19... Kh7
{[%clk 0:02:46.9]} 20. Bxe6 {[%clk 0:01:18]} 20... fxe6 {[%clk 0:02:42.7]} 21.
Rc1 {[%clk 0:01:03.6]} 21... Rxf2 {[%clk 0:02:36.6]} 22. Kxf2 {[%clk 0:01:00.7]}
22... Qxh2+ {[%clk 0:02:37.6]} 23. Kf3 {[%clk 0:01:02.6]} 23... Qxg3+ {[%clk
0:02:38.1]} 24. Ke2 {[%clk 0:01:02.3]} 24... Qg2# {[%clk 0:02:37.4]} 0-1

[Event "*** Titled Tuesday Blitz"]
[Site "Chess.com"]
[Date "2019.03.05"]
[Round "10"]
[White "PocketPivot"]
[Black "gmjoey1"]
[Result "0-1"]
[WhiteElo "2515"]
[BlackElo "2728"]
[TimeControl "180+2"]
[EndTime "15:26:22 PST"]
[Termination "gmjoey1 won by resignation"]

1. e4 {[%clk 0:03:01.9]} 1... c6 {[%clk 0:03:00]} 2. Nc3 {[%clk 0:03:02.5]} 2...
d5 {[%clk 0:03:01.9]} 3. Nf3 {[%clk 0:03:04.4]} 3... dxe4 {[%clk 0:03:02.6]} 4.
Nxe4 {[%clk 0:03:05.3]} 4... Nf6 {[%clk 0:03:04.5]} 5. Qe2 {[%clk 0:02:59.5]}
5... Bg4 {[%clk 0:03:03.4]} 6. h3 {[%clk 0:02:54.5]} 6... Bh5 {[%clk 0:03:03.5]}
7. Nxf6+ {[%clk 0:02:54.1]} 7... gxf6 {[%clk 0:03:04.7]} 8. d3 {[%clk
0:02:55.8]} 8... c5 {[%clk 0:03:02]} 9. g4 {[%clk 0:02:36.4]} 9... Bg6 {[%clk
0:03:01.6]} 10. Bd2 {[%clk 0:02:37.3]} 10... Nc6 {[%clk 0:03:01.3]} 11. O-O-O
{[%clk 0:02:38.3]} 11... Bg7 {[%clk 0:02:37.3]} 12. h4 {[%clk 0:02:19]} 12... h5
{[%clk 0:02:33.5]} 13. gxh5 {[%clk 0:02:11.6]} 13... Bxh5 {[%clk 0:02:31.7]} 14.
Qe4 {[%clk 0:01:53.3]} 14... f5 {[%clk 0:02:06.9]} 15. Qxf5 {[%clk 0:01:08.5]}
15... Qb6 {[%clk 0:02:05.4]} 16. c3 {[%clk 0:00:51.3]} 16... Qa6 {[%clk
0:02:06.1]} 17. Kb1 {[%clk 0:00:42.2]} 17... c4 {[%clk 0:02:01]} 18. Rg1 {[%clk
0:00:31.5]} 18... Bf6 {[%clk 0:02:01.6]} 19. dxc4 {[%clk 0:00:26.7]} 19... Rd8
{[%clk 0:01:50.5]} 20. Qb5 {[%clk 0:00:26.7]} 20... Bxf3 {[%clk 0:01:47.2]} 0-1

[Event "*** Titled Tuesday Blitz"]
[Site "Chess.com"]
[Date "2019.03.05"]
[Round "10"]
[White "Denis_Palkovich"]
[Black "DonPreuss"]
[Result "0-1"]
[WhiteElo "2247"]
[BlackElo "2213"]
[TimeControl "180+2"]
[EndTime "15:26:35 PST"]
[Termination "DonPreuss won on time"]

1. d4 {[%clk 0:03:01.9]} 1... Nc6 {[%clk 0:02:57.3]} 2. Bf4 {[%clk 0:03:01.1]}
2... d6 {[%clk 0:02:57.6]} 3. e3 {[%clk 0:03:00.7]} 3... g6 {[%clk 0:02:59.1]}
4. Nf3 {[%clk 0:03:01.4]} 4... Bg7 {[%clk 0:03:00.7]} 5. h3 {[%clk 0:03:02.8]}
5... e6 {[%clk 0:03:02.1]} 6. Be2 {[%clk 0:03:03.5]} 6... Nge7 {[%clk
0:03:02.6]} 7. O-O {[%clk 0:03:04.6]} 7... O-O {[%clk 0:03:04.5]} 8. c4 {[%clk
0:03:05.7]} 8... e5 {[%clk 0:03:01.4]} 9. Bh2 {[%clk 0:03:05.8]} 9... e4 {[%clk
0:03:02.2]} 10. Nfd2 {[%clk 0:03:06.4]} 10... f5 {[%clk 0:03:03.6]} 11. Nc3
{[%clk 0:03:07]} 11... g5 {[%clk 0:03:04.5]} 12. Rc1 {[%clk 0:03:05.4]} 12...
Ng6 {[%clk 0:03:05.7]} 13. c5 {[%clk 0:02:45.4]} 13... f4 {[%clk 0:03:00.4]} 14.
Ndxe4 {[%clk 0:02:37.8]} 14... Nh4 {[%clk 0:02:49.3]} 15. cxd6 {[%clk
0:02:15.8]} 15... f3 {[%clk 0:02:45.1]} 16. Bc4+ {[%clk 0:02:00.8]} 16... Kh8
{[%clk 0:02:45.5]} 17. dxc7 {[%clk 0:01:58.1]} 17... Qe8 {[%clk 0:02:44.7]} 18.
g4 {[%clk 0:01:44.5]} 18... h5 {[%clk 0:02:41.3]} 19. Nd6 {[%clk 0:01:27.6]}
19... Qg6 {[%clk 0:02:36.9]} 20. Qc2 {[%clk 0:01:14.4]} 20... Qh6 {[%clk
0:02:32.2]} 21. Nf7+ {[%clk 0:01:02.8]} 21... Rxf7 {[%clk 0:02:32.8]} 22. Bxf7
{[%clk 0:01:04.7]} 22... hxg4 {[%clk 0:02:34.2]} 23. Ne4 {[%clk 0:00:06.2]}
23... Nf5 {[%clk 0:02:14.1]} 24. hxg4 {[%clk 0:00:05.8]} 24... Qh3 {[%clk
0:02:15.1]} 0-1

[Event "*** Titled Tuesday Blitz"]
[Site "Chess.com"]
[Date "2019.03.05"]
[Round "10"]
[White "Rashad_Zeynalli"]
[Black "Marcus_Harvey"]
[Result "0-1"]
[WhiteElo "2420"]
[BlackElo "2596"]
[TimeControl "180+2"]
[EndTime "15:26:59 PST"]
[Termination "Marcus_Harvey won by resignation"]

1. e4 {[%clk 0:03:01.9]} 1... e6 {[%clk 0:02:58]} 2. d4 {[%clk 0:03:02.3]} 2...
d5 {[%clk 0:02:59]} 3. Nc3 {[%clk 0:03:03.1]} 3... Nf6 {[%clk 0:03:00.1]} 4. e5
{[%clk 0:03:04.2]} 4... Nfd7 {[%clk 0:03:01.3]} 5. f4 {[%clk 0:03:05.7]} 5... c5
{[%clk 0:03:03.2]} 6. Nf3 {[%clk 0:03:06.4]} 6... Nc6 {[%clk 0:03:05.1]} 7. Be3
{[%clk 0:03:07.5]} 7... a6 {[%clk 0:03:07]} 8. Qd2 {[%clk 0:03:08.5]} 8... Qb6
{[%clk 0:03:08.3]} 9. Na4 {[%clk 0:03:09.1]} 9... Qb4 {[%clk 0:03:08.4]} 10.
Qxb4 {[%clk 0:03:08.9]} 10... Nxb4 {[%clk 0:03:08.9]} 11. Kd2 {[%clk 0:02:57.5]}
11... b6 {[%clk 0:03:10.1]} 12. g4 {[%clk 0:02:51.4]} 12... Bb7 {[%clk
0:03:09.1]} 13. a3 {[%clk 0:02:43.1]} 13... Nc6 {[%clk 0:03:09.3]} 14. Be2
{[%clk 0:02:41.6]} 14... Be7 {[%clk 0:03:00.1]} 15. h4 {[%clk 0:02:42.2]} 15...
Rc8 {[%clk 0:02:55.6]} 16. h5 {[%clk 0:02:36.5]} 16... cxd4 {[%clk 0:02:34.2]}
17. Nxd4 {[%clk 0:02:36.2]} 17... Na5 {[%clk 0:02:35]} 18. Nb3 {[%clk
0:02:28.3]} 18... Nc4+ {[%clk 0:02:27.8]} 19. Bxc4 {[%clk 0:02:22.3]} 19... dxc4
{[%clk 0:02:27.2]} 20. Nd4 {[%clk 0:02:22.3]} 20... Bxh1 {[%clk 0:02:27.4]} 21.
Rxh1 {[%clk 0:02:24.2]} 21... b5 {[%clk 0:02:28.4]} 22. Nc3 {[%clk 0:02:24.1]}
22... Nc5 {[%clk 0:02:21.1]} 23. Ke2 {[%clk 0:02:20.2]} 23... O-O {[%clk
0:02:19.3]} 24. Kf3 {[%clk 0:02:17.9]} 24... Rfd8 {[%clk 0:02:17.4]} 25. f5
{[%clk 0:02:18.4]} 25... Bg5 {[%clk 0:02:15.1]} 26. Nxe6 {[%clk 0:02:04.8]}
26... Nxe6 {[%clk 0:01:48.1]} 27. fxe6 {[%clk 0:02:05.8]} 27... Bxe3 {[%clk
0:01:49.3]} 28. exf7+ {[%clk 0:01:59.7]} 28... Kxf7 {[%clk 0:01:50.4]} 29. Kxe3
{[%clk 0:02:01.6]} 29... Ke6 {[%clk 0:01:51]} 30. Rf1 {[%clk 0:02:01.2]} 30...
Rf8 {[%clk 0:01:51.6]} 31. Rxf8 {[%clk 0:01:34.7]} 31... Rxf8 {[%clk 0:01:51.6]}
32. Kd4 {[%clk 0:01:36.2]} 32... Rf4+ {[%clk 0:01:49.9]} 33. Kc5 {[%clk
0:01:37.1]} 33... Rxg4 {[%clk 0:01:49.7]} 34. Kb6 {[%clk 0:01:37.8]} 34... Rg5
{[%clk 0:01:46.9]} 35. Kxa6 {[%clk 0:01:37.5]} 35... Rxh5 {[%clk 0:01:47.9]} 36.
Kxb5 {[%clk 0:01:36.7]} 36... Rxe5+ {[%clk 0:01:49]} 37. Kb6 {[%clk 0:01:29.2]}
37... h5 {[%clk 0:01:50.9]} 38. a4 {[%clk 0:01:30.6]} 38... h4 {[%clk
0:01:52.1]} 39. a5 {[%clk 0:01:30.4]} 39... h3 {[%clk 0:01:53.1]} 40. Nd1 {[%clk
0:01:29.4]} 40... h2 {[%clk 0:01:54.1]} 41. Nf2 {[%clk 0:01:30.3]} 41... Re2
{[%clk 0:01:52.1]} 42. Nh1 {[%clk 0:01:30.8]} 42... Re1 {[%clk 0:01:52.6]} 43.
Ng3 {[%clk 0:01:27.3]} 43... Rg1 {[%clk 0:01:53.4]} 0-1

[Event "*** Titled Tuesday Blitz"]
[Site "Chess.com"]
[Date "2019.03.05"]
[Round "10"]
[White "SamCopeland"]
[Black "Kampkatten"]
[Result "0-1"]
[WhiteElo "2047"]
[BlackElo "2736"]
[TimeControl "180+2"]
[EndTime "15:27:04 PST"]
[Termination "Kampkatten won by resignation"]

1. e4 {[%clk 0:03:01.9]} 1... c5 {[%clk 0:02:57.7]} 2. Nf3 {[%clk 0:03:02.3]}
2... d6 {[%clk 0:02:59]} 3. d4 {[%clk 0:03:03.6]} 3... cxd4 {[%clk 0:03:00.9]}
4. Nxd4 {[%clk 0:03:05]} 4... Nf6 {[%clk 0:03:02.8]} 5. Nc3 {[%clk 0:03:05.7]}
5... a6 {[%clk 0:03:04.7]} 6. Bg5 {[%clk 0:03:06.9]} 6... e6 {[%clk 0:03:05.6]}
7. f4 {[%clk 0:03:07.2]} 7... Be7 {[%clk 0:03:06.6]} 8. Qf3 {[%clk 0:03:07.2]}
8... Nbd7 {[%clk 0:03:08.2]} 9. O-O-O {[%clk 0:03:06.7]} 9... Qc7 {[%clk
0:03:09.8]} 10. g4 {[%clk 0:03:05.8]} 10... b5 {[%clk 0:03:10.7]} 11. Bg2 {[%clk
0:02:48.6]} 11... Bb7 {[%clk 0:03:07.7]} 12. Qe2 {[%clk 0:02:46.6]} 12... b4
{[%clk 0:02:58.8]} 13. Na4 {[%clk 0:02:45.3]} 13... Rc8 {[%clk 0:02:47.7]} 14.
Bxf6 {[%clk 0:02:17.1]} 14... Nxf6 {[%clk 0:02:37]} 15. g5 {[%clk 0:02:16.7]}
15... Nd7 {[%clk 0:02:34.7]} 16. h4 {[%clk 0:02:14.3]} 16... Nc5 {[%clk
0:02:22.6]} 17. Nxc5 {[%clk 0:02:09]} 17... dxc5 {[%clk 0:02:24.5]} 18. Nf3
{[%clk 0:02:04.9]} 18... Qxf4+ {[%clk 0:02:24.9]} 19. Kb1 {[%clk 0:02:04.4]}
19... Qxe4 {[%clk 0:02:21.7]} 20. Qf2 {[%clk 0:01:55.5]} 20... Qf4 {[%clk
0:02:18.3]} 21. Qe2 {[%clk 0:01:21.6]} 21... Bd5 {[%clk 0:01:59.9]} 22. b3
{[%clk 0:01:16.6]} 22... c4 {[%clk 0:01:42.9]} 23. Rhf1 {[%clk 0:01:01.8]} 23...
Qe4 {[%clk 0:01:39.8]} 24. Qf2 {[%clk 0:00:44.6]} 24... cxb3 {[%clk 0:01:40.6]}
25. axb3 {[%clk 0:00:44.6]} 25... O-O {[%clk 0:01:14.7]} 26. Nd4 {[%clk
0:00:39.5]} 26... Qxg2 {[%clk 0:01:14.8]} 0-1

[Event "*** Titled Tuesday Blitz"]
[Site "Chess.com"]
[Date "2019.03.05"]
[Round "10"]
[White "Caterpiller35"]
[Black "Babas"]
[Result "1-0"]
[WhiteElo "2350"]
[BlackElo "2264"]
[TimeControl "180+2"]
[EndTime "15:27:04 PST"]
[Termination "Caterpiller35 won on time"]

1. d4 {[%clk 0:03:01.9]} 1... Nf6 {[%clk 0:03:00.3]} 2. Bg5 {[%clk 0:02:57.2]}
2... c5 {[%clk 0:03:00.2]} 3. d5 {[%clk 0:02:55.3]} 3... Qb6 {[%clk 0:03:00.6]}
4. Nc3 {[%clk 0:02:55.3]} 4... Qxb2 {[%clk 0:02:59.9]} 5. Bd2 {[%clk 0:02:56.8]}
5... Qb6 {[%clk 0:02:59.2]} 6. e4 {[%clk 0:02:58.3]} 6... d6 {[%clk 0:02:59.6]}
7. f4 {[%clk 0:02:58.6]} 7... g6 {[%clk 0:03:01.1]} 8. Nf3 {[%clk 0:02:58.4]}
8... Bg7 {[%clk 0:03:02.4]} 9. e5 {[%clk 0:02:57.6]} 9... dxe5 {[%clk
0:03:03.2]} 10. fxe5 {[%clk 0:02:57.9]} 10... Ng4 {[%clk 0:03:04.6]} 11. Rb1
{[%clk 0:02:58.8]} 11... Qd8 {[%clk 0:03:04.8]} 12. Bb5+ {[%clk 0:02:58.6]}
12... Bd7 {[%clk 0:03:05.7]} 13. e6 {[%clk 0:02:58.2]} 13... fxe6 {[%clk
0:03:07]} 14. Ng5 {[%clk 0:02:55.5]} 14... Bxb5 {[%clk 0:02:51.9]} 15. Nxe6
{[%clk 0:02:46.7]} 15... Qd7 {[%clk 0:02:49.9]} 16. Qxg4 {[%clk 0:02:27]} 16...
Bf6 {[%clk 0:00:08]} 17. Nxb5 {[%clk 0:02:16.5]} 17... Na6 {[%clk 0:00:09.9]}
18. O-O {[%clk 0:01:57.5]} 18... Rc8 {[%clk 0:00:10.9]} 19. c4 {[%clk
0:01:54.5]} 19... Nb4 {[%clk 0:00:11.5]} 20. Rxf6 {[%clk 0:01:40.4]} 20... exf6
{[%clk 0:00:02.8]} 21. Re1 {[%clk 0:01:39.6]} 21... Kf7 {[%clk 0:00:03.6]} 22.
Ng5+ {[%clk 0:01:39.9]} 22... fxg5 {[%clk 0:00:02.8]} 23. Qxd7+ {[%clk
0:01:40.7]} 1-0

[Event "*** Titled Tuesday Blitz"]
[Site "Chess.com"]
[Date "2019.03.05"]
[Round "10"]
[White "2nd_life"]
[Black "Keaton87"]
[Result "1/2-1/2"]
[WhiteElo "2412"]
[BlackElo "2543"]
[TimeControl "180+2"]
[EndTime "15:27:07 PST"]
[Termination "Game drawn by repetition"]

1. e4 {[%clk 0:03:01.9]} 1... c5 {[%clk 0:03:00.5]} 2. Nf3 {[%clk 0:03:02.7]}
2... d6 {[%clk 0:02:58.4]} 3. d4 {[%clk 0:03:03.8]} 3... cxd4 {[%clk 0:02:58]}
4. Nxd4 {[%clk 0:03:05.3]} 4... Nf6 {[%clk 0:02:59.1]} 5. Nc3 {[%clk 0:03:06.8]}
5... g6 {[%clk 0:02:59.9]} 6. Be3 {[%clk 0:03:07.7]} 6... Bg7 {[%clk 0:03:00.7]}
7. f3 {[%clk 0:03:09.1]} 7... O-O {[%clk 0:03:01.4]} 8. Qd2 {[%clk 0:03:10.5]}
8... Nc6 {[%clk 0:03:02.5]} 9. O-O-O {[%clk 0:03:11.5]} 9... d5 {[%clk
0:03:03.8]} 10. exd5 {[%clk 0:03:12.5]} 10... Nxd5 {[%clk 0:03:04.5]} 11. Nxc6
{[%clk 0:03:13.7]} 11... bxc6 {[%clk 0:03:05.9]} 12. Bd4 {[%clk 0:03:14.9]}
12... Bxd4 {[%clk 0:03:07]} 13. Qxd4 {[%clk 0:03:15.5]} 13... Qb6 {[%clk
0:03:08.6]} 14. Na4 {[%clk 0:03:08.9]} 14... Qc7 {[%clk 0:03:09.4]} 15. Bc4
{[%clk 0:03:05.4]} 15... Rd8 {[%clk 0:03:09.7]} 16. Rhe1 {[%clk 0:02:57.1]}
16... Bf5 {[%clk 0:03:08.7]} 17. Qe5 {[%clk 0:02:35.4]} 17... Qa5 {[%clk
0:02:30.8]} 18. Bb3 {[%clk 0:02:20.5]} 18... Rd6 {[%clk 0:02:27.8]} 19. g4
{[%clk 0:02:05.7]} 19... Be6 {[%clk 0:02:28.1]} 20. h4 {[%clk 0:01:45.9]} 20...
Rad8 {[%clk 0:02:09.2]} 21. g5 {[%clk 0:01:15.3]} 21... Qb4 {[%clk 0:01:54.7]}
22. Qe4 {[%clk 0:00:52.8]} 22... Qa5 {[%clk 0:01:35.8]} 23. Qe5 {[%clk
0:00:46.2]} 23... Qb4 {[%clk 0:01:36.2]} 24. Qe4 {[%clk 0:00:32.4]} 24... Qa5
{[%clk 0:01:12.4]} 25. Qe5 {[%clk 0:00:32.8]} 1/2-1/2

[Event "*** Titled Tuesday Blitz"]
[Site "Chess.com"]
[Date "2019.03.05"]
[Round "10"]
[White "King_of_the_wing"]
[Black "toog"]
[Result "0-1"]
[WhiteElo "2136"]
[BlackElo "2242"]
[TimeControl "180+2"]
[EndTime "15:27:47 PST"]
[Termination "toog won by resignation"]

1. e4 {[%clk 0:03:01.9]} 1... c5 {[%clk 0:03:00.4]} 2. Nf3 {[%clk 0:03:03]} 2...
d6 {[%clk 0:03:00.6]} 3. d4 {[%clk 0:03:03.8]} 3... cxd4 {[%clk 0:03:02.5]} 4.
Nxd4 {[%clk 0:03:03.4]} 4... Nf6 {[%clk 0:03:03.9]} 5. Nc3 {[%clk 0:03:05.1]}
5... a6 {[%clk 0:03:05.2]} 6. Bg5 {[%clk 0:03:05.3]} 6... Nbd7 {[%clk
0:03:05.9]} 7. Bc4 {[%clk 0:03:01.6]} 7... Qa5 {[%clk 0:03:05.9]} 8. Qd2 {[%clk
0:02:55.3]} 8... b5 {[%clk 0:03:05.8]} 9. Nb3 {[%clk 0:02:39.7]} 9... Qc7 {[%clk
0:02:58.9]} 10. Bd5 {[%clk 0:02:37.3]} 10... Rb8 {[%clk 0:02:56]} 11. a3 {[%clk
0:02:28.4]} 11... e6 {[%clk 0:02:56.7]} 12. O-O {[%clk 0:02:14.2]} 12... exd5
{[%clk 0:02:57]} 13. exd5 {[%clk 0:02:15.7]} 13... Be7 {[%clk 0:02:57.6]} 14.
Rfe1 {[%clk 0:02:17.1]} 14... Ne5 {[%clk 0:02:53.3]} 15. Bxf6 {[%clk 0:02:10.8]}
15... gxf6 {[%clk 0:02:49.7]} 16. f4 {[%clk 0:02:12]} 16... Nc4 {[%clk
0:02:50.2]} 17. Qe2 {[%clk 0:02:10.5]} 17... Rg8 {[%clk 0:02:41.8]} 18. Ne4
{[%clk 0:02:03.7]} 18... Kf8 {[%clk 0:02:37.7]} 19. Nd4 {[%clk 0:01:56.9]} 19...
Bh3 {[%clk 0:02:37.4]} 20. Ng3 {[%clk 0:01:47.9]} 20... Bg4 {[%clk 0:02:35.4]}
21. Qf2 {[%clk 0:01:18.6]} 21... Re8 {[%clk 0:02:35.3]} 22. Ngf5 {[%clk
0:01:07.2]} 22... Bxf5 {[%clk 0:02:31]} 23. Nxf5 {[%clk 0:01:08.2]} 23... Qc5
{[%clk 0:02:31.6]} 24. Nd4 {[%clk 0:01:05.6]} 24... Bd8 {[%clk 0:02:26.3]} 25.
Rxe8+ {[%clk 0:00:51.7]} 25... Kxe8 {[%clk 0:02:27]} 26. c3 {[%clk 0:00:40.4]}
26... Bb6 {[%clk 0:02:19.7]} 27. Re1+ {[%clk 0:00:37.6]} 27... Kf8 {[%clk
0:02:19.1]} 28. Qh4 {[%clk 0:00:33.7]} 28... Qxd5 {[%clk 0:02:13.3]} 29. Qh6+
{[%clk 0:00:22.6]} 29... Rg7 {[%clk 0:02:14.1]} 30. Qh3 {[%clk 0:00:14.7]} 30...
Bxd4+ {[%clk 0:02:12.1]} 31. cxd4 {[%clk 0:00:16.6]} 31... Qxd4+ {[%clk
0:02:13.5]} 32. Kh1 {[%clk 0:00:18.1]} 32... Rg6 {[%clk 0:02:09.1]} 33. Qxh7
{[%clk 0:00:11.4]} 33... f5 {[%clk 0:02:09.9]} 34. Qh4 {[%clk 0:00:06.2]} 34...
Kg7 {[%clk 0:02:03.6]} 35. h3 {[%clk 0:00:03.8]} 35... Qd2 {[%clk 0:02:02.9]}
36. Rg1 {[%clk 0:00:03.4]} 36... Ne3 {[%clk 0:02:02.8]} 37. Qe7 {[%clk
0:00:03.6]} 37... Rxg2 {[%clk 0:01:59.1]} 0-1

[Event "*** Titled Tuesday Blitz"]
[Site "Chess.com"]
[Date "2019.03.05"]
[Round "10"]
[White "IIIlllII1llIl"]
[Black "1stSecond"]
[Result "1-0"]
[WhiteElo "2618"]
[BlackElo "2738"]
[TimeControl "180+2"]
[EndTime "15:27:55 PST"]
[Termination "IIIlllII1llIl won by checkmate"]

1. g3 {[%clk 0:02:56.2]} 1... d5 {[%clk 0:03:00.3]} 2. Bg2 {[%clk 0:02:57]} 2...
e5 {[%clk 0:03:01.7]} 3. d3 {[%clk 0:02:57.3]} 3... g6 {[%clk 0:02:56.5]} 4. Nf3
{[%clk 0:02:55.1]} 4... Bg7 {[%clk 0:02:57.3]} 5. O-O {[%clk 0:02:55.8]} 5...
Ne7 {[%clk 0:02:57.9]} 6. e4 {[%clk 0:02:48.3]} 6... Nbc6 {[%clk 0:02:55.4]} 7.
Nc3 {[%clk 0:02:37.5]} 7... d4 {[%clk 0:02:39.2]} 8. Nd5 {[%clk 0:02:32.2]} 8...
h6 {[%clk 0:02:30.4]} 9. c4 {[%clk 0:02:24.1]} 9... dxc3 {[%clk 0:02:30.8]} 10.
bxc3 {[%clk 0:02:24.7]} 10... Nxd5 {[%clk 0:02:31.1]} 11. exd5 {[%clk
0:02:25.8]} 11... Ne7 {[%clk 0:02:32.7]} 12. Re1 {[%clk 0:02:22.4]} 12... Nxd5
{[%clk 0:02:32.8]} 13. Nxe5 {[%clk 0:02:19.9]} 13... O-O {[%clk 0:02:34.2]} 14.
Qf3 {[%clk 0:01:47.2]} 14... c6 {[%clk 0:02:30.5]} 15. Ba3 {[%clk 0:01:46.6]}
15... Nxc3 {[%clk 0:02:24.8]} 16. Bxf8 {[%clk 0:01:41.6]} 16... Qxf8 {[%clk
0:02:26.7]} 17. d4 {[%clk 0:01:40.7]} 17... Nd5 {[%clk 0:02:23.4]} 18. Qb3
{[%clk 0:01:37.6]} 18... Nb6 {[%clk 0:02:15.8]} 19. Nxg6 {[%clk 0:01:19.4]}
19... Qd8 {[%clk 0:02:06.8]} 20. Re7 {[%clk 0:00:40]} 20... Nd5 {[%clk
0:01:50.9]} 21. Bxd5 {[%clk 0:00:37.7]} 21... cxd5 {[%clk 0:01:52.2]} 22. Rae1
{[%clk 0:00:32.4]} 22... Bf5 {[%clk 0:01:47.2]} 23. Nh4 {[%clk 0:00:13.9]} 23...
Be6 {[%clk 0:01:30.3]} 24. R1xe6 {[%clk 0:00:05.2]} 24... fxe6 {[%clk
0:01:32.2]} 25. Qxb7 {[%clk 0:00:06.1]} 25... Bxd4 {[%clk 0:01:26.1]} 26. Rxe6
{[%clk 0:00:06.5]} 26... Rb8 {[%clk 0:01:17.6]} 27. Rg6+ {[%clk 0:00:06.5]}
27... Kf8 {[%clk 0:01:18]} 28. Qh7 {[%clk 0:00:07.4]} 28... Bxf2+ {[%clk
0:01:09.6]} 29. Kg2 {[%clk 0:00:08.3]} 29... Qg5 {[%clk 0:01:07.6]} 30. Rxg5
{[%clk 0:00:09.1]} 30... hxg5 {[%clk 0:01:09.5]} 31. Ng6+ {[%clk 0:00:10.4]}
31... Ke8 {[%clk 0:01:10.5]} 32. Qe7# {[%clk 0:00:12.3]} 1-0